bitfinex/quotes_BTCUSD_20250224
["timestamp","ask_amount","ask_price","bid_price","bid_amount"]
[1740397759003,0.156357,95934.0,95926.0,0.0783]
[1740397759121,0.001,95932.0,95926.0,0.0783]
[1740397760621,0.15636,95933.0,95926.0,0.0783]
[1740397761381,0.15736,95933.0,95926.0,0.0783]
[1740397762454,0.15636,95932.0,95926.0,0.0783]
[1740397762659,0.001,95933.0,95926.0,0.0783]
[1740397762854,0.156362,95932.0,95926.0,0.0783]
[1740397763634,0.209479,95933.0,95926.0,0.0783]
[1740397763851,0.001,95933.0,95926.0,0.0783]
[1740397764041,0.156362,95932.0,95926.0,0.0783]
[1740397764644,0.157362,95932.0,95926.0,0.0783]
[1740397767313,0.001,95932.0,95926.0,0.0783]
[1740397767475,0.157361,95932.0,95926.0,0.0783]
[1740397767898,0.156362,95931.0,95926.0,0.0783]
[1740397768307,0.001,95932.0,95926.0,0.0783]
[1740397768515,0.156362,95931.0,95926.0,0.0783]
[1740397768722,0.156362,95932.0,95926.0,0.0783]
[1740397770242,0.156362,95932.0,95926.0,0.0799992]
[1740397771114,0.157362,95932.0,95926.0,0.0799992]
[1740397771339,0.156362,95931.0,95926.0,0.0799992]
[1740397773233,0.0008496,95934.0,95926.0,0.0799992]
[1740397773798,0.156362,95932.0,95926.0,0.0799992]
[1740397774229,0.14959403,95932.0,95926.0,0.0799992]
[1740397775099,0.15059403,95932.0,95926.0,0.0799992]
[1740397775301,0.001,95932.0,95926.0,0.0799992]
[1740397775500,0.156362,95931.0,95926.0,0.0799992]
[1740397776640,0.157361,95932.0,95926.0,0.0799992]
[1740397777064,0.001,95932.0,95926.0,0.0799992]
[1740397777237,0.156365,95930.0,95926.0,0.0799992]
[1740397777596,0.156362,95931.0,95926.0,0.0799992]
[1740397777811,0.156364,95930.0,95926.0,0.0799992]
[1740397778322,0.156362,95931.0,95926.0,0.0799992]
[1740397780845,0.156364,95930.0,95926.0,0.0799992]
[1740397783080,0.156363,95931.0,95926.0,0.0799992]
[1740397783632,0.0008496,95934.0,95926.0,0.0799992]
[1740397783977,0.156366,95929.0,95926.0,0.0799992]
[1740397784563,0.208485,95930.0,95926.0,0.0799992]
[1740397784778,0.156364,95930.0,95926.0,0.0799992]
[1740397785937,0.156365,95930.0,95926.0,0.0799992]
[1740397786104,0.208481,95932.0,95926.0,0.0799992]
[1740397787254,0.156366,95929.0,95926.0,0.0799992]
[1740397789664,0.0008496,95934.0,95926.0,0.0799992]
[1740397789871,0.156368,95927.0,95926.0,0.0799992]
[1740397790290,0.156368,95927.0,95926.0,0.0016992]
[1740397791029,0.156368,95927.0,95926.0,0.0026992]
[1740397791677,0.156368,95927.0,95926.0,0.0036992]
[1740397793746,0.156368,95927.0,95926.0,0.0026992]
[1740397793880,0.156368,95927.0,95926.0,0.0016992]
[1740397797258,0.156368,95927.0,95926.0,0.0770992]
[1740397804540,0.208489,95929.0,95926.0,0.0770992]
[1740397804784,0.0008496,95934.0,95926.0,0.0770992]
[1740397804785,0.2093266,95934.0,95926.0,0.0770992]
[1740397804966,0.156367,95928.0,95926.0,0.0770992]
[1740397805467,0.156368,95927.0,95926.0,0.0770992]
[1740397805890,0.156368,95928.0,95926.0,0.0770992]
[1740397806506,0.157366,95929.0,95926.0,0.0770992]
[1740397806735,0.156366,95929.0,95926.0,0.0770992]
[1740397806945,0.156367,95928.0,95926.0,0.0770992]
[1740397807849,0.208487,95930.0,95926.0,0.0770992]
[1740397807850,0.157366,95929.0,95926.0,0.0770992]
[1740397808273,0.001,95929.0,95926.0,0.0770992]
[1740397808665,0.157365,95929.0,95926.0,0.0770992]
[1740397809076,0.156365,95929.0,95926.0,0.0770992]
[1740397809280,0.156364,95930.0,95926.0,0.0770992]
[1740397810267,0.001,95929.0,95926.0,0.0770992]
[1740397810713,0.156366,95929.0,95926.0,0.0770992]
[1740397810923,0.156367,95928.0,95926.0,0.0770992]
[1740397811123,0.001,95930.0,95926.0,0.0770992]
[1740397811334,0.156368,95927.0,95926.0,0.0770992]
[1740397811754,0.156365,95929.0,95926.0,0.0770992]
[1740397811958,0.156367,95928.0,95926.0,0.0770992]
[1740397812566,0.209486,95930.0,95926.0,0.0770992]
[1740397812771,0.156365,95929.0,95926.0,0.0770992]
[1740397812978,0.208486,95930.0,95926.0,0.0770992]
[1740397813185,0.001,95929.0,95926.0,0.0770992]
[1740397813386,0.209488,95929.0,95926.0,0.0770992]
[1740397813722,0.156368,95927.0,95926.0,0.0770992]
[1740397813889,0.156367,95928.0,95926.0,0.0770992]
[1740397815331,0.156368,95927.0,95926.0,0.0770992]
[1740397817906,0.208488,95929.0,95926.0,0.0770992]
[1740397818306,0.156368,95927.0,95926.0,0.0770992]
[1740397822437,0.208488,95929.0,95926.0,0.0770992]
[1740397822750,0.0008497,95932.0,95926.0,0.0770992]
[1740397823438,0.156367,95928.0,95926.0,0.0770992]
[1740397824443,0.001,95929.0,95926.0,0.0770992]
[1740397825229,0.156368,95928.0,95926.0,0.0770992]
[1740397825440,0.0008497,95932.0,95926.0,0.0770992]
[1740397825692,0.156368,95927.0,95926.0,0.0770992]
[1740397826751,0.156368,95928.0,95926.0,0.0770992]
[1740397828460,0.156368,95927.0,95926.0,0.0770992]
[1740397829183,0.156365,95929.0,95926.0,0.0770992]
[1740397829388,0.156367,95928.0,95926.0,0.0770992]
[1740397829942,0.156365,95929.0,95926.0,0.0770992]
[1740397830353,0.208483,95931.0,95926.0,0.0770992]
[1740397830597,0.156368,95927.0,95926.0,0.0770992]
[1740397832832,0.0008497,95932.0,95926.0,0.0770992]
[1740397833072,0.156366,95929.0,95926.0,0.0770992]
[1740397833664,0.208483,95931.0,95926.0,0.0770992]
[1740397834223,0.156364,95930.0,95926.0,0.0770992]
[1740397834446,0.156366,95929.0,95926.0,0.0770992]
[1740397834655,0.208483,95931.0,95926.0,0.0770992]
[1740397834978,0.156365,95930.0,95926.0,0.0770992]
[1740397835809,0.0008497,95932.0,95926.0,0.0770992]
[1740397835991,0.156366,95929.0,95926.0,0.0770992]
[1740397836341,0.156367,95928.0,95926.0,0.0770992]
[1740397836836,0.208486,95930.0,95926.0,0.0770992]
[1740397836837,0.157365,95930.0,95926.0,0.0770992]
[1740397837296,0.156366,95929.0,95926.0,0.0770992]
[1740397838396,0.2093317,95932.0,95926.0,0.0770992]
[1740397838601,0.156365,95930.0,95926.0,0.0770992]
[1740397838984,0.156365,95929.0,95926.0,0.0770992]
[1740397839187,0.156364,95930.0,95926.0,0.0770992]
[1740397839389,0.001,95929.0,95926.0,0.0770992]
[1740397839596,0.157365,95929.0,95926.0,0.0770992]
[1740397840164,0.156364,95930.0,95926.0,0.0770992]
[1740397840365,0.156365,95929.0,95926.0,0.0770992]
[1740397841042,0.0008497,95932.0,95926.0,0.0770992]
[1740397841442,0.156365,95930.0,95926.0,0.0770992]
[1740397841598,0.157365,95930.0,95926.0,0.0770992]
[1740397842011,0.156365,95930.0,95926.0,0.0770992]
[1740397842209,0.0018497,95932.0,95926.0,0.0770992]
[1740397842414,0.0018497,95932.0,95931.0,0.156362]
[1740397842784,0.0008497,95932.0,95931.0,0.38750769]
[1740397843206,0.0008497,95932.0,95931.0,0.38650769]
[1740397845846,0.0008497,95932.0,95931.0,0.46957624]
[1740397846047,0.0008497,95932.0,95931.0,0.47157624]
[1740397846237,0.0008497,95932.0,95931.0,0.47457624]
[1740397846596,0.0008496,95934.0,95933.0,0.306359]
[1740397846802,0.0008496,95934.0,95933.0,0.54040469]
[1740397847222,0.01554713,95939.0,95938.0,0.43775]
[1740397847420,0.01554713,95939.0,95938.0,0.54039569]
[1740397848367,0.0008496,95940.0,95939.0,0.156349]
[1740397848573,0.0008496,95940.0,95939.0,0.3878534]
[1740397848904,0.0008496,95940.0,95939.0,0.38639469]
[1740397849682,0.0008496,95940.0,95939.0,0.39339469]
[1740397849894,0.0008496,95940.0,95939.0,0.40039469]
[1740397850106,0.0008498,95953.0,95939.0,0.40039469]
[1740397850312,0.0008498,95953.0,95952.0,0.34204224]
[1740397850520,0.0008498,95953.0,95952.0,0.46824224]
[1740397850731,0.0008498,95953.0,95952.0,0.93964224]
[1740397851647,0.00128068,95953.0,95952.0,0.93964224]
[1740397852557,0.00128068,95953.0,95952.0,0.94564224]
[1740397852944,0.00128068,95953.0,95952.0,0.94664224]
[1740397853160,0.00128068,95953.0,95952.0,0.95364224]
[1740397859736,0.00128068,95953.0,95952.0,1.49964224]
[1740397862590,0.00128068,95953.0,95952.0,1.51964224]
[1740397875071,0.0881,95997.0,95952.0,1.51964224]
[1740397875276,8.536e-05,95997.0,95981.0,0.0774]
[1740397875607,8.536e-05,95997.0,95982.0,0.10410402]
[1740397876612,8.536e-05,95997.0,95988.0,0.156269]
[1740397876816,8.536e-05,95997.0,95989.0,0.10264569]
[1740397877224,8.536e-05,95997.0,95989.0,0.25891269]
[1740397877632,8.536e-05,95997.0,95989.0,0.10264569]
[1740397878041,8.536e-05,95997.0,95989.0,0.10139356]
[1740397878246,8.536e-05,95997.0,95989.0,0.25766056]
[1740397878497,8.536e-05,95997.0,95989.0,0.10139356]
[1740397878692,8.536e-05,95997.0,95989.0,0.25765956]
[1740397879225,8.536e-05,95997.0,95989.0,0.10139356]
[1740397879454,0.00093496,95997.0,95989.0,0.10139356]
[1740397880212,0.00093496,95997.0,95989.0,0.25766056]
[1740397881348,0.00093496,95997.0,95989.0,0.10139356]
[1740397882623,0.00093496,95997.0,95989.0,0.25766056]
[1740397883023,0.00093496,95997.0,95989.0,0.10139356]
[1740397886245,0.00093496,95997.0,95989.0,0.25765956]
[1740397886418,0.00093496,95997.0,95989.0,0.10139356]
[1740397886654,0.00093496,95997.0,95989.0,0.25765956]
[1740397886983,0.15406142,96001.0,95989.0,0.10139356]
[1740397887195,0.35079857,96010.0,95989.0,0.10139356]
[1740397887413,0.35079857,96010.0,95989.0,0.25766056]
[1740397887589,0.208328,96003.0,95989.0,0.25766056]
[1740397888210,0.156248,96001.0,95990.0,0.156264]
[1740397888426,0.156248,96001.0,95991.0,0.10264569]
[1740397888734,0.15625,96000.0,95991.0,0.10264569]
[1740397888874,0.156254,95998.0,95991.0,0.10264569]
[1740397889323,0.35079857,96010.0,95991.0,0.10264569]
[1740397889730,0.208315,96008.0,95991.0,0.10264569]
[1740397889945,0.156251,96000.0,95991.0,0.10264569]
[1740397890618,0.35079857,96010.0,95991.0,0.10264569]
[1740397890826,0.208315,96008.0,95991.0,0.10364569]
[1740397891264,0.208315,96008.0,95991.0,0.10264569]
[1740397891729,0.156253,95999.0,95991.0,0.10364569]
[1740397891937,0.208332,96001.0,95991.0,0.10264569]
[1740397892347,0.208332,96001.0,95991.0,0.10364569]
[1740397892942,0.156251,95999.0,95991.0,0.10364569]
[1740397893670,0.156251,95999.0,95991.0,0.10264569]
[1740397894413,0.20832,96006.0,95991.0,0.10264569]
[1740397894592,0.208315,96008.0,95991.0,0.10264569]
[1740397894765,0.156251,96000.0,95991.0,0.10264569]
[1740397894966,0.156248,96001.0,95991.0,0.10264569]
[1740397895150,0.156251,96000.0,95991.0,0.10264569]
[1740397895541,0.208315,96008.0,95991.0,0.10264569]
[1740397895743,0.156252,95999.0,95991.0,0.10264569]
[1740397896187,0.156254,95998.0,95991.0,0.10264569]
[1740397896400,0.208315,96008.0,95991.0,0.10264569]
[1740397896609,0.156254,95998.0,95991.0,0.10364569]
[1740397897076,0.156254,95998.0,95991.0,0.10264569]
[1740397898195,0.156252,95999.0,95991.0,0.10264569]
[1740397900576,0.156251,96000.0,95991.0,0.18204569]
[1740397901039,0.208323,96005.0,95991.0,0.18204569]
[1740397901232,0.156251,95999.0,95991.0,0.18204569]
[1740397901575,0.208324,96004.0,95991.0,0.18204569]
[1740397901746,0.208331,96002.0,95991.0,0.18204569]
[1740397902108,0.156251,96000.0,95991.0,0.18204569]
[1740397902303,0.208323,96005.0,95991.0,0.18204569]
[1740397902540,0.156248,96002.0,95991.0,0.33830869]
[1740397902739,0.0012492,96009.0,95992.0,0.156262]
[1740397902940,0.156248,96002.0,95992.0,0.10264569]
[1740397903183,0.156245,96003.0,95993.0,0.156261]
[1740397903341,0.156248,96001.0,95992.0,0.25890769]
[1740397904086,0.156247,96002.0,95993.0,0.156261]
[1740397904290,0.208318,96007.0,95995.0,0.0469]
[1740397904695,0.0008491,96008.0,95995.0,0.0469]
[1740397904696,0.156247,96002.0,95995.0,0.0469]
[1740397905098,0.156248,96002.0,95995.0,0.0469]
[1740397905300,0.156247,96002.0,95995.0,0.0469]
[1740397905514,0.156248,96002.0,95995.0,0.0469]
[1740397905722,0.156249,96001.0,95995.0,0.0469]
[1740397906015,0.156248,96001.0,95995.0,0.0469]
[1740397907286,0.156247,96002.0,95995.0,0.0469]
[1740397907926,0.20832,96006.0,95995.0,0.0469]
[1740397908326,0.156249,96001.0,95995.0,0.0469]
[1740397909198,0.208318,96007.0,95995.0,0.0469]
[1740397909428,0.0008491,96008.0,95995.0,0.0469]
[1740397909640,0.156243,96004.0,95995.0,0.0469]
[1740397909843,0.156243,96004.0,95995.0,0.203157]
[1740397910262,0.156242,96005.0,95996.0,0.156256]
[1740397910464,0.20832,96006.0,95995.0,0.0469]
[1740397910602,0.156243,96004.0,95995.0,0.203157]
[1740397910898,0.156243,96004.0,95995.0,0.204157]
[1740397911946,0.20832,96006.0,95995.0,0.203157]
[1740397912144,0.156247,96002.0,95995.0,0.0469]
[1740397912396,0.156247,96002.0,95996.0,0.001]
[1740397912599,0.208325,96004.0,95996.0,0.001]
[1740397912804,0.20832,96006.0,95996.0,0.001]
[1740397913010,0.156248,96001.0,95995.0,0.0469]
[1740397913367,0.20832,96006.0,95995.0,0.0469]
[1740397913775,0.208324,96004.0,95995.0,0.0469]
[1740397913973,0.156245,96003.0,95995.0,0.0469]
[1740397914190,0.156247,96002.0,95995.0,0.0469]
[1740397915324,0.156246,96002.0,95995.0,0.0469]
[1740397915849,0.0008491,96008.0,95995.0,0.0469]
[1740397916048,0.156247,96002.0,95995.0,0.0469]
[1740397916887,0.156247,96002.0,95995.0,0.0485982]
[1740397918468,0.156248,96001.0,95995.0,0.0485982]
[1740397918578,0.2091741,96004.0,95995.0,0.0485982]
[1740397919042,0.2091741,96004.0,95996.0,0.076]
[1740397919195,0.0008491,96004.0,95996.0,0.076]
[1740397919411,0.15625,96000.0,95996.0,0.076]
[1740397919668,0.0008491,96004.0,95996.0,0.076]
[1740397919865,0.156253,95998.0,95996.0,0.076]
[1740397920020,0.0008491,96004.0,95996.0,0.076]
[1740397920229,0.156249,96001.0,95996.0,0.076]
[1740397920431,0.15625,96000.0,95996.0,0.076]
[1740397920642,0.156252,95999.0,95996.0,0.076]
[1740397920838,0.0008491,96004.0,95996.0,0.076]
[1740397921038,0.156247,96002.0,95996.0,0.076]
[1740397921268,0.0008491,96004.0,95996.0,0.076]
[1740397921542,0.156249,96001.0,95996.0,0.076]
[1740397923157,0.0008491,96004.0,95996.0,0.076]
[1740397923369,0.156249,96001.0,95996.0,0.076]
[1740397923836,0.15625,96000.0,95996.0,0.076]
[1740397925527,0.156248,96001.0,95996.0,0.076]
[1740397926843,0.15625,96000.0,95996.0,0.076]
[1740397927482,0.0008491,96004.0,95996.0,0.076]
[1740397927686,0.156248,96001.0,95996.0,0.076]
[1740397928127,0.208327,96003.0,95996.0,0.076]
[1740397928686,0.156249,96001.0,95996.0,0.076]
[1740397928888,0.156249,96001.0,95996.0,0.0776982]
[1740397929084,0.0008491,96001.0,95996.0,0.0776982]
[1740397929300,0.1570971,96001.0,95996.0,0.0776982]
[1740397931410,0.15625,96000.0,95996.0,0.0776982]
[1740397932763,0.0008491,96001.0,95996.0,0.0776982]
[1740397932982,0.1570971,96001.0,95996.0,0.0776982]
[1740397933089,0.15625,96000.0,95996.0,0.0776982]
[1740397933297,0.1570981,96001.0,95996.0,0.0776982]
[1740397934520,0.15625,96000.0,95996.0,0.0776982]
[1740397936283,0.156251,95999.0,95996.0,0.0776982]
[1740397936498,0.0008491,96001.0,95996.0,0.0776982]
[1740397936763,0.156251,96000.0,95996.0,0.0776982]
[1740397936940,0.2091801,96001.0,95996.0,0.0776982]
[1740397937170,0.15625,96000.0,95996.0,0.0776982]
[1740397937380,0.156252,95999.0,95996.0,0.0776982]
[1740397937582,0.1570981,96001.0,95996.0,0.0776982]
[1740397937788,0.15625,96000.0,95996.0,0.0776982]
[1740397938107,0.0008491,96001.0,95996.0,0.0776982]
[1740397938764,0.15625,96000.0,95996.0,0.0776982]
[1740397939501,0.156251,95999.0,95996.0,0.0776982]
[1740397939974,0.0008491,96001.0,95996.0,0.0776982]
[1740397940179,0.156251,96000.0,95996.0,0.0776982]
[1740397940678,0.0008491,96001.0,95996.0,0.0776982]
[1740397941079,0.156251,96000.0,95996.0,0.0776982]
[1740397943345,0.156252,95999.0,95996.0,0.0776982]
[1740397945069,0.0008491,96001.0,95996.0,0.0776982]
[1740397945290,0.156253,95998.0,95996.0,0.0776982]
[1740397945493,0.208333,96000.0,95996.0,0.0776982]
[1740397945929,0.156252,95999.0,95996.0,0.0776982]
[1740397946458,0.0008491,96001.0,95996.0,0.0776982]
[1740397946685,0.156251,95999.0,95996.0,0.0776982]
[1740397947347,0.2091811,96001.0,95996.0,0.0776982]
[1740397947348,0.15625,96000.0,95996.0,0.0776982]
[1740397947487,0.156251,95999.0,95996.0,0.0776982]
[1740397948555,0.0008491,96004.0,95996.0,0.0776982]
[1740397948778,0.156251,95999.0,95996.0,0.0776982]
[1740397949611,0.208326,96003.0,95996.0,0.0776982]
[1740397949816,0.15625,96000.0,95996.0,0.0776982]
[1740397951746,0.156248,96002.0,95996.0,0.0776982]
[1740397951888,0.156251,96000.0,95996.0,0.0776982]
[1740397952493,0.0008491,96004.0,95996.0,0.0776982]
[1740397952698,0.15625,96000.0,95996.0,0.0776982]
[1740397952909,0.2091787,96002.0,95996.0,0.0776982]
[1740397953115,0.156251,95999.0,95996.0,0.0776982]
[1740397953408,0.156248,96001.0,95996.0,0.0776982]
[1740397953615,0.15625,96000.0,95996.0,0.0776982]
[1740397954362,0.0008497,96002.0,95996.0,0.0776982]
[1740397954512,0.15625,96000.0,95996.0,0.0776982]
[1740397954924,0.208331,96001.0,95996.0,0.0776982]
[1740397955332,0.156251,96000.0,95996.0,0.0776982]
[1740397956259,0.156252,95999.0,95996.0,0.0776982]
[1740397958408,0.15625,96000.0,95996.0,0.0776982]
[1740397959047,0.0008497,96002.0,95996.0,0.0776982]
[1740397959337,0.156251,95999.0,95996.0,0.0776982]
[1740397959551,0.208333,96000.0,95996.0,0.0776982]
[1740397959780,0.0008497,96002.0,95996.0,0.0776982]
[1740397960443,0.1570967,96002.0,95996.0,0.0776982]
[1740397961301,0.0008497,96002.0,95996.0,0.0776982]
[1740397961511,0.1570957,96002.0,95996.0,0.0776982]
[1740397961902,0.0008497,96002.0,95996.0,0.0776982]
[1740397962542,0.1570967,96002.0,95996.0,0.0776982]
[1740397963792,0.156248,96001.0,95996.0,0.0776982]
[1740397964112,0.156251,95999.0,95996.0,0.0776982]
[1740397964518,0.1570977,96002.0,95996.0,0.0776982]
[1740397964715,0.15625,96000.0,95996.0,0.0776982]
[1740397965351,0.2091797,96002.0,95996.0,0.0776982]
[1740397965572,0.0008497,96002.0,95996.0,0.0776982]
[1740397965778,0.156249,96001.0,95996.0,0.0776982]
[1740397966215,0.0008497,96002.0,95996.0,0.0776982]
[1740397966699,0.156252,95999.0,95996.0,0.0776982]
[1740397968027,0.208331,96001.0,95996.0,0.0776982]
[1740397968209,0.156252,95999.0,95996.0,0.0776982]
[1740397969627,0.15625,96000.0,95996.0,0.0776982]
[1740397969833,0.156251,95999.0,95996.0,0.0776982]
[1740397970559,0.208331,96001.0,95996.0,0.0776982]
[1740397970764,0.156251,95999.0,95996.0,0.0776982]
[1740397972019,0.16183548,96001.0,95996.0,0.0776982]
[1740397972220,0.156253,95999.0,95996.0,0.0776982]
[1740397974642,0.16183548,96001.0,95996.0,0.0776982]
[1740397974853,0.156253,95998.0,95996.0,0.0776982]
[1740397975623,0.156251,95999.0,95996.0,0.0776982]
[1740397976240,0.156253,95998.0,95996.0,0.0776982]
[1740397980270,0.0008497,95999.0,95996.0,0.0776982]
[1740397980444,0.156254,95998.0,95996.0,0.0776982]
[1740397980779,0.1571007,95999.0,95996.0,0.0776982]
[1740397981142,0.156253,95998.0,95996.0,0.0776982]
[1740397982336,0.0008497,95999.0,95996.0,0.0776982]
[1740397984572,0.0008497,95999.0,95998.0,0.287553]
[1740397984942,0.0008497,95999.0,95998.0,0.39019869]
[1740397986994,0.0008497,95999.0,95998.0,0.39619869]
[1740397987593,0.0008497,95999.0,95998.0,0.39719869]
[1740397987996,0.0008497,95999.0,95998.0,0.39619869]
[1740397988327,0.0008497,95999.0,95998.0,0.40319869]
[1740398002400,0.0008497,95999.0,95998.0,0.40489809]
[1740398004432,0.0008497,95999.0,95998.0,0.72629809]
[1740398010552,0.0008497,95999.0,95998.0,0.87629809]
[1740398014199,0.0008497,95999.0,95998.0,1.42229809]
[1740398026380,0.00043315,96025.0,95999.0,0.2799]
[1740398026582,0.00043315,96025.0,96024.0,0.15621]
[1740398026815,0.00043315,96025.0,96024.0,0.10264569]
[1740398027234,0.00043315,96025.0,96013.0,0.3214]
[1740398027488,0.14248557,96023.0,96013.0,0.3214]
[1740398027685,0.156224,96016.0,96013.0,0.3214]
[1740398028126,0.156227,96014.0,96013.0,0.3214]
[1740398030464,0.157227,96014.0,96013.0,0.3214]
[1740398031134,0.001,96014.0,96013.0,0.3214]
[1740398031376,0.157227,96014.0,96013.0,0.3214]
[1740398031638,0.001,96014.0,96013.0,0.3214]
[1740398031904,0.001,96014.0,96013.0,0.58027369]
[1740398032161,0.001,96014.0,96013.0,0.25887369]
[1740398032457,0.001,96014.0,96013.0,0.10264569]
[1740398041650,0.001,96014.0,96013.0,0.25887369]
[1740398042743,0.001,96014.0,96013.0,0.33877369]
[1740398043715,0.001,96014.0,96013.0,0.34177369]
[1740398043954,0.0008496,96023.0,96019.0,0.156219]
[1740398044170,0.0008496,96023.0,96020.0,0.10264569]
[1740398045415,0.04559278,96030.0,96020.0,0.10264569]
[1740398045646,0.00012933,96028.0,96020.0,0.10264569]
[1740398047435,0.00212933,96028.0,96020.0,0.10264569]
[1740398048027,0.00312933,96028.0,96020.0,0.10264569]
[1740398049287,0.00312933,96028.0,96020.0,0.25886269]
[1740398049839,0.00312933,96028.0,96020.0,0.10264569]
[1740398051169,0.00397893,96028.0,96020.0,0.10264569]
[1740398053575,0.16018393,96028.0,96020.0,0.10264569]
[1740398053776,0.16018293,96028.0,96020.0,0.10264569]
[1740398054181,0.00397893,96028.0,96020.0,0.10264569]
[1740398054925,0.03366248,96028.0,96020.0,0.10264569]
[1740398055136,0.18986648,96028.0,96020.0,0.10264569]
[1740398055868,0.02968355,96027.0,96020.0,0.10264569]
[1740398057086,0.00097893,96028.0,96020.0,0.10264569]
[1740398057494,0.001,96027.0,96020.0,0.10264569]
[1740398060386,0.002,96027.0,96020.0,0.10264569]
[1740398061012,0.002,96027.0,96026.0,0.156207]
[1740398061211,0.002,96027.0,96026.0,0.25885269]
[1740398061636,0.002,96027.0,96026.0,0.10264569]
[1740398062025,0.00097893,96028.0,96027.0,0.156206]
[1740398062232,0.00097893,96028.0,96027.0,0.25785169]
[1740398063477,0.00097893,96028.0,96027.0,0.25685169]
[1740398064189,0.00197893,96028.0,96027.0,0.25885169]
[1740398064419,0.00397893,96028.0,96027.0,0.25885169]
[1740398067157,0.00397893,96028.0,96027.0,0.34165169]
[1740398068577,0.00397893,96028.0,96027.0,0.38945169]
[1740398074460,0.00397893,96028.0,96027.0,0.39115069]
[1740398087319,0.00397893,96028.0,96027.0,0.38989893]
[1740398087950,0.00397893,96028.0,96027.0,0.23369293]
[1740398088269,0.16018293,96028.0,96027.0,0.001699]
[1740398094581,0.17472378,96028.0,96027.0,0.001699]
[1740398096416,0.2022576,96028.0,96027.0,0.001699]
[1740398098488,0.17472378,96028.0,96027.0,0.001699]
[1740398098921,0.2022576,96028.0,96027.0,0.001699]
[1740398100796,0.37597462,96028.0,96027.0,0.001699]
[1740398101319,0.47862031,96028.0,96027.0,0.001699]
[1740398101901,0.45490329,96028.0,96027.0,0.001699]
[1740398103229,0.72852214,96028.0,96027.0,0.001699]
[1740398104448,0.72752214,96028.0,96027.0,0.001699]
[1740398104622,0.72552214,96028.0,96027.0,0.001699]
[1740398104842,0.70098832,96028.0,96027.0,0.001699]
[1740398105079,0.71498832,96028.0,96027.0,0.001699]
[1740398105250,0.81763401,96028.0,96027.0,0.001699]
[1740398105457,0.84516783,96028.0,96027.0,0.001699]
[1740398108840,0.74252214,96028.0,96027.0,0.001699]
[1740398109233,0.71498832,96028.0,96027.0,0.001699]
[1740398109446,0.74252214,96028.0,96027.0,0.001699]
[1740398111893,0.71498832,96028.0,96027.0,0.001699]
[1740398112097,0.74252214,96028.0,96027.0,0.001699]
[1740398112909,0.84516783,96028.0,96027.0,0.001699]
[1740398114450,0.81763401,96028.0,96027.0,0.001699]
[1740398114871,0.71498832,96028.0,96027.0,0.001699]
[1740398115911,0.74252214,96028.0,96027.0,0.001699]
[1740398117064,0.61234263,96028.0,96027.0,0.001699]
[1740398117697,0.63987645,96028.0,96027.0,0.001699]
[1740398117859,0.61234263,96028.0,96027.0,0.001699]
[1740398119102,0.60334263,96028.0,96027.0,0.001699]
[1740398119306,0.45334263,96028.0,96027.0,0.001699]
[1740398119478,0.46234263,96028.0,96027.0,0.001699]
[1740398120036,0.61234263,96028.0,96027.0,0.001699]
[1740398121157,0.32972378,96028.0,96027.0,0.001699]
[1740398122354,0.38419606,96028.0,96027.0,0.001699]
[1740398122619,0.32972378,96028.0,96027.0,0.001699]
[1740398126707,0.1640623,96028.0,96027.0,0.001699]
[1740398126937,0.314204,96028.0,96027.0,0.001699]
[1740398130100,0.156204,96028.0,96027.0,0.001699]
[1740398130664,0.156204,96028.0,96027.0,0.001659]
[1740398132192,0.1570538,96028.0,96027.0,0.001659]
[1740398134023,0.1660538,96028.0,96027.0,0.001659]
[1740398154469,0.32974485,96028.0,96027.0,0.001659]
[1740398155300,0.33059465,96028.0,96027.0,0.001659]
[1740398158403,0.3160538,96028.0,96027.0,0.127359]
[1740398158725,0.1508498,96028.0,96027.0,0.127359]
[1740398159300,0.0008498,96028.0,96027.0,0.127359]
[1740398159850,0.1570538,96028.0,96027.0,0.127359]
[1740398160409,0.0008498,96028.0,96027.0,0.127359]
[1740398162218,0.1570538,96028.0,96027.0,0.127359]
[1740398173282,0.3070538,96028.0,96027.0,0.127359]
[1740398190190,0.1508498,96028.0,96027.0,0.127359]
[1740398190599,0.3070538,96028.0,96027.0,0.127359]
[1740398190775,0.1508498,96028.0,96027.0,0.127359]
[1740398191119,0.3070538,96028.0,96027.0,0.127359]
[1740398191318,0.1508498,96028.0,96027.0,0.127319]
[1740398191524,0.3070538,96028.0,96027.0,0.127319]
[1740398200400,0.32771907,96028.0,96027.0,0.001619]
[1740398200598,0.44490561,96028.0,96027.0,0.001619]
[1740398201684,1.09471961,96028.0,96027.0,0.001619]
[1740398202651,1.08384261,96028.0,96027.0,0.001619]
[1740398204297,1.35746146,96028.0,96027.0,0.001619]
[1740398208225,1.35746146,96028.0,96020.0,0.001699]
[1740398208423,0.306215,96021.0,96020.0,0.001699]
[1740398208629,0.40886069,96021.0,96020.0,0.001699]
[1740398209499,0.40886069,96021.0,96020.0,0.002699]
[1740398209702,0.40886069,96021.0,96020.0,0.001699]
[1740398210108,0.40986069,96021.0,96020.0,0.002699]
[1740398210518,0.51250638,96021.0,96020.0,0.002699]
[1740398211446,0.51750638,96021.0,96020.0,0.003699]
[1740398213219,0.68847954,96021.0,96020.0,0.003699]
[1740398213844,0.59483385,96021.0,96020.0,0.003699]
[1740398214489,0.6003747,96021.0,96020.0,0.003699]
[1740398214712,0.6093747,96021.0,96020.0,0.003699]
[1740398217407,0.6093747,96021.0,96020.0,0.003699]
[1740398220808,0.6093747,96021.0,96020.0,0.002622]
[1740398222425,0.71202039,96021.0,96020.0,0.002622]
[1740398223019,0.6093747,96021.0,96020.0,0.002622]
[1740398223398,0.59483385,96021.0,96020.0,0.002622]
[1740398225056,0.321215,96021.0,96020.0,0.002622]
[1740398227747,0.321215,96021.0,96020.0,0.00236071]
[1740398229664,0.015,96021.0,96020.0,0.00236071]
[1740398229836,0.171215,96021.0,96020.0,0.00236071]
[1740398233160,0.33575585,96021.0,96020.0,0.00236071]
[1740398233421,0.53563439,96021.0,96020.0,0.00236071]
[1740398233936,1.86324439,96021.0,96020.0,0.00236071]
[1740398234187,1.77911239,96021.0,96020.0,0.00236071]
[1740398234451,1.20127039,96021.0,96020.0,0.00236071]
[1740398234914,0.43840154,96021.0,96020.0,0.00236071]
[1740398235374,0.33575585,96021.0,96020.0,0.00236071]